fUST/lending_fUST_20250212
["ID","MTS","AMOUNT","RATE_DAILY","PERIOD"]
[352797041,1739319043877,-1041.18,0.00014126,2]
[352797042,1739319043886,-500.0,0.00014126,2]
[352797043,1739319043895,-500.0,0.00014126,2]
[352797044,1739319043904,-854.81,0.00014126,2]
[352797045,1739319043914,-500.0,0.00014126,2]
[352797046,1739319043924,-500.0,0.00014126,2]
[352797047,1739319043933,-500.0,0.00014126,2]
[352797048,1739319043943,-500.0,0.00014126,2]
[352797049,1739319043952,-974.73,0.00014126,2]
[352797050,1739319043962,-1907.34,0.00014126,2]
[352797051,1739319043971,-617.25,0.00014126,2]
[352797052,1739319043981,-1382.39,0.00014127,2]
[352797053,1739319043992,-258.06993,0.00014127,2]
[352797054,1739319044001,-151.0,0.00014127,2]
[352797055,1739319044011,-500.0,0.00014127,2]
[352797056,1739319044020,-151.0,0.00014127,2]
[352797057,1739319044029,-2586.6,0.00014127,2]
[352797058,1739319044039,-151.0,0.00014127,2]
[352797059,1739319044048,-151.0,0.00014127,2]
[352797060,1739319044058,-151.0,0.00014127,2]
[352797061,1739319044067,-500.0,0.00014127,2]
[352797062,1739319044076,-151.0,0.00014127,2]
[352797063,1739319044086,-243.130193,0.00014127,2]
[352797064,1739319044095,-9605.01,0.00014127,2]
[352797065,1739319044105,-319.46279732,0.00014127,2]
[352797066,1739319044114,-3220.17,0.00014127,2]
[352797067,1739319044124,-328.128257,0.00014127,2]
[352797068,1739319044133,-328.128257,0.00014127,2]
[352797069,1739319044144,-151.0,0.00014127,2]
[352797070,1739319044154,-167.520197,0.00014127,2]
[352797071,1739319044163,-167.520197,0.00014127,2]
[352797072,1739319044173,-151.0,0.00014127,2]
[352797073,1739319044184,-500.0,0.00014127,2]
[352797074,1739319044193,-151.0,0.00014127,2]
[352797075,1739319044203,-151.0,0.00014127,2]
[352797076,1739319044212,-151.0,0.00014127,2]
[352797077,1739319044222,-1000.0,0.00014128,2]
[352797078,1739319044352,-797.51005449,0.00014237,2]
[352797079,1739319044362,-202.27276175,0.00014247,2]
[352797080,1739319044372,-500.0,0.00014263,2]
[352797081,1739319044381,-794.04,0.00014263,2]
[352797082,1739319044391,-500.0,0.00014263,2]
[352797083,1739319044401,-500.0,0.00014263,2]
[352797084,1739319044410,-1057.87,0.00014263,2]
[352797085,1739319044420,-500.0,0.00014263,2]
[352797086,1739319044429,-500.0,0.00014263,2]
[352797087,1739319044438,-808.86,0.00014263,2]
[352797088,1739319044447,-500.0,0.00014263,2]
[352797089,1739319044458,-500.0,0.00014263,2]
[352797090,1739319044467,-1041.18,0.00014263,2]
[352797091,1739319044476,-500.0,0.00014263,2]
[352797092,1739319044486,-500.0,0.00014263,2]
[352797093,1739319044496,-854.81,0.00014263,2]
[352797094,1739319044505,-500.0,0.00014263,2]
[352797095,1739319044514,-500.0,0.00014263,2]
[352797096,1739319044527,-500.0,0.00014263,2]
[352797097,1739319044537,-500.0,0.00014263,2]
[352797098,1739319044546,-974.73,0.00014263,2]
[352797099,1739319044555,-1907.34,0.00014263,2]
[352797100,1739319044565,-617.25,0.00014263,2]
[352797101,1739319044575,-1382.39,0.00014264,2]
[352797102,1739319044584,-500.0,0.00014264,2]
[352797103,1739319044593,-151.0,0.00014264,2]
[352797104,1739319044604,-151.0,0.00014264,2]
[352797105,1739319044613,-151.0,0.00014264,2]
[352797106,1739319044623,-252.719165,0.00014264,2]
[352797107,1739319044632,-252.719165,0.00014264,2]
[352797108,1739319044641,-2586.6,0.00014264,2]
[352797109,1739319044651,-500.0,0.00014264,2]
[352797110,1739319044660,-9605.01,0.00014264,2]
[352797111,1739319044670,-151.0,0.00014264,2]
[352797112,1739319044679,-151.0,0.00014264,2]
[352797113,1739319044688,-3220.17,0.00014264,2]
[352797114,1739319044698,-474.52,0.00014264,2]
[352797115,1739319044708,-1000.0,0.00014265,2]
[352797116,1739319044717,-500.0,0.0001437,2]
[352797117,1739319044727,-500.0,0.000144,2]
[352797118,1739319044737,-794.04,0.000144,2]
[352797119,1739319044747,-500.0,0.000144,2]
[352797120,1739319044757,-500.0,0.000144,2]
[352797121,1739319044766,-1057.87,0.000144,2]
[352797122,1739319044776,-500.0,0.000144,2]
[352797123,1739319044785,-500.0,0.000144,2]
[352797124,1739319044795,-808.86,0.000144,2]
[352797125,1739319044806,-500.0,0.000144,2]
[352797126,1739319044816,-500.0,0.000144,2]
[352797127,1739319044825,-1041.18,0.000144,2]
[352797128,1739319044834,-500.0,0.000144,2]
[352797129,1739319044844,-500.0,0.000144,2]
[352797130,1739319044853,-854.81,0.000144,2]
[352797131,1739319044863,-526.52,0.000144,2]
[352797132,1739319044873,-500.0,0.000144,2]
[352797133,1739319044883,-500.0,0.000144,2]
[352797134,1739319044893,-500.0,0.000144,2]
[352797135,1739319044902,-974.73,0.000144,2]
[352797136,1739319044911,-1907.34,0.000144,2]
[352797137,1739319044921,-617.25,0.000144,2]
[352797138,1739319044931,-1382.39,0.00014401,2]
[352797139,1739319044940,-151.0,0.00014401,2]
[352797140,1739319044949,-500.0,0.00014401,2]
[352797141,1739319044959,-2586.6,0.00014401,2]
[352797142,1739319044969,-500.0,0.00014401,2]
[352797143,1739319044978,-9605.01,0.00014401,2]
[352797144,1739319044987,-3220.17,0.00014401,2]
[352797145,1739319044997,-328.128257,0.00014401,2]
[352797146,1739319045007,-328.128257,0.00014401,2]
[352797147,1739319045017,-151.0,0.00014401,2]
[352797148,1739319045026,-167.520197,0.00014401,2]
[352797149,1739319045036,-167.520197,0.00014401,2]
[352797150,1739319045046,-151.0,0.00014401,2]
[352797151,1739319045055,-151.0,0.00014401,2]
[352797152,1739319045065,-151.0,0.00014401,2]
[352797153,1739319045075,-151.0,0.00014401,2]
[352797154,1739319045084,-1000.0,0.00014402,2]
[352797155,1739319045093,-420.0,0.00014436,2]
[352797156,1739319045103,-500.0,0.00014537,2]
[352797157,1739319045113,-794.04,0.00014537,2]
[352797158,1739319045122,-500.0,0.00014537,2]
[352797159,1739319045132,-214.0301328,0.00014537,2]
[352797160,1739319045141,-500.0,0.00014537,2]
[352797161,1739319045150,-645.04,0.00014537,2]
[352797162,1739319045159,-808.86,0.00014537,2]
[352797163,1739319045169,-500.0,0.00014537,2]
[352797164,1739319045179,-500.0,0.00014537,2]
[352797165,1739319045188,-1041.18,0.00014537,2]
[352797166,1739319045198,-500.0,0.00014537,2]
[352797167,1739319045208,-500.0,0.00014537,2]
[352797168,1739319045217,-854.81,0.00014537,2]
[352797169,1739319045227,-612.06,0.00014537,2]
[352797170,1739319045236,-500.0,0.00014537,2]
[352797171,1739319045246,-500.0,0.00014537,2]
[352797172,1739319045255,-974.73,0.00014537,2]
[352797173,1739319045264,-1907.34,0.00014537,2]
[352797174,1739319045274,-617.25,0.00014537,2]
[352797175,1739319045283,-1382.39,0.00014538,2]
[352797176,1739319045293,-500.0,0.00014538,2]
[352797177,1739319045302,-151.0,0.00014538,2]
[352797178,1739319045311,-2586.6,0.00014538,2]
[352797179,1739319045321,-151.0,0.00014538,2]
[352797180,1739319045331,-151.0,0.00014538,2]
[352797181,1739319045340,-151.0,0.00014538,2]
[352797182,1739319045349,-500.0,0.00014538,2]
[352797183,1739319045359,-151.0,0.00014538,2]
[352797184,1739319045368,-9605.01,0.00014538,2]
[352797185,1739319045378,-3220.17,0.00014538,2]
[352797186,1739319045388,-319.94071062,0.00014539,2]
[352797187,1739319045397,-300.0,0.000146,5]
[352797188,1739319045407,-794.04,0.00014674,2]
[352797189,1739319045416,-500.0,0.00014674,2]
[352797190,1739319045426,-500.0,0.00014674,2]
[352797191,1739319045435,-808.86,0.00014674,2]
[352797192,1739319045445,-500.0,0.00014674,2]
[352797193,1739319045455,-334.1,0.00014674,2]
[352797194,1739319045465,-1041.18,0.00014674,2]
[352797195,1739319045474,-500.0,0.00014674,2]
[352797196,1739319045484,-500.0,0.00014674,2]
[352797197,1739319045493,-854.81,0.00014674,2]
[352797198,1739319045503,-500.0,0.00014674,2]
[352797199,1739319045512,-500.0,0.00014674,2]
[352797200,1739319045522,-974.73,0.00014674,2]
[352797201,1739319045535,-1907.34,0.00014674,2]
[352797202,1739319045545,-617.25,0.00014674,2]
[352797203,1739319045555,-1382.39,0.00014675,2]
[352797204,1739319045564,-500.0,0.00014675,2]
[352797205,1739319045574,-151.0,0.00014675,2]
[352797206,1739319045583,-295.020541,0.00014675,2]
[352797207,1739319045593,-151.0,0.00014675,2]
[352797208,1739319045603,-252.719165,0.00014675,2]
[352797209,1739319045613,-252.719165,0.00014675,2]
[352797210,1739319045622,-2586.6,0.00014675,2]
[352797211,1739319045631,-500.0,0.00014675,2]
[352797212,1739319045640,-9605.01,0.00014675,2]
[352797213,1739319045650,-3220.17,0.00014675,2]
[352797214,1739319045659,-797.51005449,0.00014753,2]
[352797215,1739319045669,-500.0,0.0001476,2]
[352797216,1739319045678,-794.04,0.00014811,2]
[352797217,1739319045688,-500.0,0.00014811,2]
[352797218,1739319045697,-500.0,0.00014811,2]
[352797219,1739319045707,-151.0,0.00014811,2]
[352797220,1739319045717,-151.0,0.00014811,2]
[352797221,1739319045726,-185.94724488,0.00014811,2]
[352797222,1739319045855,-622.91275512,0.00014811,2]
[352797223,1739319045865,-500.0,0.00014811,2]
[352797224,1739319045875,-1041.18,0.00014811,2]
[352797225,1739319045885,-500.0,0.00014811,2]
[352797227,1739319045894,-232.4,0.00014811,2]
[352797229,1739319045904,-854.81,0.00014811,2]
[352797231,1739319045914,-500.0,0.00014811,2]
[352797232,1739319045924,-500.0,0.00014811,2]
[352797233,1739319045934,-974.73,0.00014811,2]
[352797234,1739319045943,-1907.34,0.00014811,2]
[352797235,1739319045952,-23.96885493,0.00014811,2]
[352797236,1739319045963,-593.28114507,0.00014811,2]
[352797237,1739319045973,-1382.39,0.00014812,2]
[352797238,1739319045983,-151.0,0.00014812,2]
[352797239,1739319045992,-500.0,0.00014812,2]
[352797240,1739319046002,-1016.70040053,0.00014812,2]
[352797241,1739319046019,-1569.89959947,0.00014812,2]
[352797242,1739319046028,-138.27521065,0.00014812,2]
[352797246,1739319046521,-412.26478935,0.00014812,2]
[352797247,1739319046534,-2970.50853933,0.00014812,2]
[352797248,1739319046545,-381.92818453,0.00014812,2]
[352797252,1739319046575,-6252.57327614,0.00014812,2]
[352797253,1739319046584,-382.43464601,0.00014812,2]
[352797254,1739319046595,-2837.73535399,0.00014812,2]
[352797255,1739319046605,-328.128257,0.00014812,2]
[352797256,1739319046615,-328.128257,0.00014812,2]
[352797257,1739319046624,-151.0,0.00014812,2]
[352797258,1739319046634,-167.520197,0.00014812,2]
[352797259,1739319046643,-167.520197,0.00014812,2]
[352797260,1739319046652,-151.0,0.00014812,2]
[352797261,1739319046662,-151.0,0.00014812,2]
[352797262,1739319046671,-151.0,0.00014812,2]
[352797263,1739319046681,-151.0,0.00014812,2]
[352797264,1739319046690,-794.04,0.00014948,2]
[352797265,1739319046700,-500.0,0.00014948,2]
[352797266,1739319046710,-500.0,0.00014948,2]
[352797267,1739319046720,-808.86,0.00014948,2]
[352797268,1739319046730,-500.0,0.00014948,2]
[352797269,1739319046740,-1041.18,0.00014948,2]
[352797270,1739319046750,-500.0,0.00014948,2]
[352797271,1739319046760,-854.81,0.00014948,2]
[352797272,1739319046770,-228.46494633,0.00014948,2]
[352797273,1739319046780,-500.0,0.00014948,2]
[352797274,1739319046789,-974.73,0.00014948,2]
[352797275,1739319046799,-1907.34,0.00014948,2]
[352797276,1739319046809,-617.25,0.00014948,2]
[352797277,1739319046819,-151.0,0.00014949,2]
[352797278,1739319046829,-151.0,0.00014949,2]
[352797279,1739319046839,-1382.39,0.00014949,2]
[352797280,1739319046849,-198.0,0.00014949,2]
[352797281,1739319046858,-157.5,0.00014949,2]
[352797282,1739319046867,-157.5,0.00014949,2]
[352797283,1739319046877,-151.0,0.00014949,2]
[352797284,1739319046887,-500.0,0.00014949,2]
[352797285,1739319046896,-2586.6,0.00014949,2]
[352797286,1739319046906,-9605.01,0.00014949,2]
[352797287,1739319046915,-3220.17,0.00014949,2]
[352797288,1739319046924,-151.0,0.00014998,2]
[352797289,1739319046933,-166.0,0.00015068,2]
[352797290,1739319046943,-794.04,0.00015085,2]
[352797291,1739319046952,-500.0,0.00015085,2]
[352797292,1739319046961,-500.0,0.00015085,2]
[352797293,1739319046971,-808.86,0.00015085,2]
[352797294,1739319046980,-500.0,0.00015085,2]
[352797295,1739319046990,-1041.18,0.00015085,2]
[352797296,1739319046999,-500.0,0.00015085,2]
[352797297,1739319047009,-854.81,0.00015085,2]
[352797298,1739319047018,-500.0,0.00015085,2]
[352797299,1739319047027,-974.73,0.00015085,2]
[352797300,1739319047037,-1907.34,0.00015085,2]
[352797301,1739319047046,-617.25,0.00015085,2]
[352797302,1739319047056,-1382.39,0.00015086,2]
[352797303,1739319047065,-500.0,0.00015086,2]
[352797304,1739319047075,-151.0,0.00015086,2]
[352797305,1739319047084,-151.0,0.00015086,2]
[352797306,1739319047093,-252.719165,0.00015086,2]
[352797307,1739319047102,-151.0,0.00015086,2]
[352797308,1739319047112,-2586.6,0.00015086,2]
[352797309,1739319047121,-151.0,0.00015086,2]
[352797310,1739319047130,-151.0,0.00015086,2]
[352797311,1739319047140,-151.0,0.00015086,2]
[352797312,1739319047242,-9605.01,0.00015086,2]
[352797313,1739319047251,-3220.17,0.00015086,2]
[352797314,1739319047261,-794.04,0.00015222,2]
[352797315,1739319047270,-500.0,0.00015222,2]
[352797316,1739319047281,-500.0,0.00015222,2]
[352797317,1739319047290,-808.86,0.00015222,2]
[352797318,1739319047299,-356.40311071,0.00015222,2]
[352797319,1739319047309,-1041.18,0.00015222,2]
[352797320,1739319047318,-500.0,0.00015222,2]
[352797321,1739319047328,-854.81,0.00015222,2]
[352797322,1739319047338,-500.0,0.00015222,2]
[352797323,1739319047347,-974.73,0.00015222,2]
[352797324,1739319047357,-1907.34,0.00015222,2]
[352797325,1739319047367,-617.25,0.00015222,2]
[352797326,1739319047376,-151.0,0.00015223,2]
[352797327,1739319047386,-1382.39,0.00015223,2]
[352797328,1739319047396,-500.0,0.00015223,2]
[352797329,1739319047405,-2586.6,0.00015223,2]
[352797330,1739319047415,-9605.01,0.00015223,2]
[352797331,1739319047425,-151.0,0.00015223,2]
[352797332,1739319047435,-151.0,0.00015223,2]
[352797333,1739319047444,-3220.17,0.00015223,2]
[352797334,1739319047455,-328.128257,0.00015223,2]
[352797335,1739319047465,-328.128257,0.00015223,2]
[352797336,1739319047474,-151.0,0.00015223,2]
[352797337,1739319047483,-167.520197,0.00015223,2]
[352797338,1739319047494,-167.520197,0.00015223,2]
[352797339,1739319047504,-151.0,0.00015223,2]
[352797340,1739319047513,-151.0,0.00015223,2]
[352797341,1739319047523,-151.0,0.00015223,2]
[352797342,1739319047535,-151.0,0.00015223,2]
[352797343,1739319047544,-797.51005449,0.00015268,2]
[352797344,1739319047554,-794.04,0.00015359,2]
[352797345,1739319047563,-325.56,0.00015359,2]
[352797346,1739319047573,-500.0,0.00015359,2]
[352797347,1739319047583,-808.86,0.00015359,2]
[352797348,1739319047592,-1041.18,0.00015359,2]
[352797349,1739319047603,-500.0,0.00015359,2]
[352797350,1739319047613,-854.81,0.00015359,2]
[352797351,1739319047623,-500.0,0.00015359,2]
[352797352,1739319047633,-974.73,0.00015359,2]
[352797353,1739319047643,-1907.34,0.00015359,2]
[352797354,1739319047652,-617.25,0.00015359,2]
[352797355,1739319047662,-1382.39,0.0001536,2]
[352797356,1739319047671,-635.86,0.0001536,2]
[352797357,1739319047681,-2586.6,0.0001536,2]
[352797358,1739319047690,-9605.01,0.0001536,2]
[352797359,1739319047700,-3220.17,0.0001536,2]
[352797360,1739319047709,-151.0,0.00015361,2]
[352797361,1739319047719,-151.0,0.00015409,2]
[352797362,1739319047727,-151.0,0.00015409,2]
[352797363,1739319047737,-157.5,0.00015409,2]
[352797364,1739319047747,-157.5,0.00015409,2]
[352797365,1739319047756,-151.0,0.00015409,2]
[352797366,1739319047766,-794.04,0.00015496,2]
[352797367,1739319047776,-500.0,0.00015496,2]
[352797368,1739319047788,-808.86,0.00015496,2]
[352797369,1739319047798,-1041.18,0.00015496,2]
[352797370,1739319047808,-500.0,0.00015496,2]
[352797371,1739319047818,-854.81,0.00015496,2]
[352797372,1739319047828,-500.0,0.00015496,2]
[352797373,1739319047838,-974.73,0.00015496,2]
[352797374,1739319047847,-1907.34,0.00015496,2]
[352797375,1739319047857,-617.25,0.00015496,2]
[352797376,1739319047867,-4870.61175057,0.00015497,5]
[352797377,1739319047876,-1382.39,0.00015497,2]
[352797378,1739319047885,-151.0,0.00015497,2]
[352797379,1739319047894,-151.0,0.00015497,2]
[352797380,1739319047903,-2586.6,0.00015497,2]
[352797381,1739319047912,-151.0,0.00015497,2]
[352797382,1739319047922,-151.0,0.00015497,2]
[352797383,1739319047932,-9605.01,0.00015497,2]
[352797384,1739319047942,-3220.17,0.00015497,2]
[352797385,1739319047952,-151.0,0.00015519,2]
[352797386,1739319047961,-500.0,0.00015546,2]
[352797387,1739319047972,-151.0,0.00015633,2]
[352797388,1739319047982,-151.0,0.00015633,2]
[352797389,1739319047991,-252.719165,0.00015633,2]
[352797390,1739319048001,-252.719165,0.00015633,2]
[352797391,1739319048010,-794.04,0.00015633,2]
[352797392,1739319048020,-500.0,0.00015633,2]
[352797393,1739319048031,-808.86,0.00015633,2]
[352797394,1739319048041,-1041.18,0.00015633,2]
[352797395,1739319048052,-500.0,0.00015633,2]
[352797396,1739319048062,-854.81,0.00015633,2]
[352797397,1739319048072,-500.0,0.00015633,2]
[352797398,1739319048082,-974.73,0.00015633,2]
[352797399,1739319048093,-1907.34,0.00015633,2]
[352797400,1739319048104,-617.25,0.00015633,2]
[352797401,1739319048115,-1382.39,0.00015634,2]
[352797402,1739319048125,-2586.6,0.00015634,2]
[352797403,1739319048136,-9605.01,0.00015634,2]
[352797404,1739319048146,-3220.17,0.00015634,2]
[352797405,1739319048160,-328.128257,0.00015634,2]
[352797406,1739319048172,-328.128257,0.00015634,2]
[352797407,1739319048182,-151.0,0.00015634,2]
[352797408,1739319048192,-167.520197,0.00015634,2]
[352797409,1739319048202,-167.520197,0.00015634,2]
[352797410,1739319048213,-212.422536,0.00015634,2]
[352797411,1739319048223,-151.0,0.00015634,2]
[352797412,1739319048234,-163.078598,0.00015634,2]
[352797413,1739319048245,-151.0,0.00015634,2]
[352797414,1739319048256,-500.0,0.00015646,2]
[352797415,1739319048266,-174.145676,0.00015683,2]
[352797416,1739319048276,-151.0,0.00015683,2]
[352797417,1739319048286,-500.0,0.00015746,2]
[352797418,1739319048297,-794.04,0.0001577,2]
[352797419,1739319048307,-500.0,0.0001577,2]
[352797420,1739319048317,-808.86,0.0001577,2]
[352797421,1739319048327,-1041.18,0.0001577,2]
[352797422,1739319048338,-500.0,0.0001577,2]
[352797423,1739319048348,-854.81,0.0001577,2]
[352797424,1739319048359,-500.0,0.0001577,2]
[352797425,1739319048370,-974.73,0.0001577,2]
[352797426,1739319048381,-1907.34,0.0001577,2]
[352797427,1739319048391,-617.25,0.0001577,2]
[352797428,1739319048401,-1382.39,0.00015771,2]
[352797429,1739319048411,-2586.6,0.00015771,2]
[352797430,1739319048422,-9605.01,0.00015771,2]
[352797431,1739319048434,-151.0,0.00015771,2]
[352797432,1739319048445,-151.0,0.00015771,2]
[352797433,1739319048455,-3220.17,0.00015771,2]
[352797434,1739319048466,-797.51005449,0.00015784,2]
[352797435,1739319048476,-587.0,0.00015829,2]
[352797436,1739319048488,-500.0,0.00015846,2]
[352797437,1739319048497,-168.21579332,0.0001589,2]
[352797438,1739319048507,-794.04,0.00015907,2]
[352797439,1739319048518,-500.0,0.00015907,2]
[352797440,1739319048533,-808.86,0.00015907,2]
[352797441,1739319048543,-1041.18,0.00015907,2]
[352797442,1739319048553,-543.25,0.00015907,2]
[352797443,1739319048564,-854.81,0.00015907,2]
[352797444,1739319048575,-500.0,0.00015907,2]
[352797445,1739319048584,-974.73,0.00015907,2]
[352797446,1739319048594,-1907.34,0.00015907,2]
[352797447,1739319048604,-617.25,0.00015907,2]
[352797448,1739319048615,-1382.39,0.00015908,2]
[352797449,1739319048626,-2586.6,0.00015908,2]
[352797450,1739319048636,-9605.01,0.00015908,2]
[352797451,1739319048647,-3220.17,0.00015908,2]
[352797452,1739319048661,-500.0,0.00015946,2]
[352797453,1739319048671,-151.0,0.00015957,2]
[352797454,1739319048681,-151.0,0.00015957,2]
[352797455,1739319048691,-157.5,0.00015957,2]
[352797456,1739319048701,-157.5,0.00015957,2]
[352797457,1739319048711,-151.0,0.00015957,2]
[352797458,1739319048722,-3000.0,0.00016,2]
[352797459,1739319048732,-2822.470384,0.00016,31]
[352797460,1739319048742,-3000.0,0.0001601,2]
[352797461,1739319048752,-151.0,0.0001601,2]
[352797462,1739319048761,-3000.0,0.0001602,2]
[352797463,1739319048771,-151.0,0.0001602,2]
[352797464,1739319048782,-151.0,0.0001602,2]
[352797465,1739319048792,-151.0,0.0001602,2]
[352797466,1739319048802,-3000.0,0.0001603,2]
[352797467,1739319048811,-3000.0,0.0001604,2]
[352797468,1739319048821,-151.0,0.0001604,2]
[352797469,1739319048831,-160.0,0.00016044,2]
[352797470,1739319048842,-794.04,0.00016044,2]
[352797471,1739319048852,-396.43,0.00016044,2]
[352797472,1739319048863,-808.86,0.00016044,2]
[352797473,1739319048873,-1041.18,0.00016044,2]
[352797474,1739319048883,-854.81,0.00016044,2]
[352797475,1739319048894,-339.16454626,0.00016044,2]
[352797476,1739319048905,-974.73,0.00016044,2]
[352797477,1739319048915,-1907.34,0.00016044,2]
[352797478,1739319048926,-617.25,0.00016044,2]
[352797479,1739319048936,-1382.39,0.00016045,2]
[352797480,1739319048946,-151.0,0.00016045,2]
[352797481,1739319048957,-151.0,0.00016045,2]
[352797482,1739319048973,-151.0,0.00016045,2]
[352797483,1739319048983,-252.719165,0.00016045,2]
[352797484,1739319048993,-252.719165,0.00016045,2]
[352797485,1739319049004,-2586.6,0.00016045,2]
[352797486,1739319049014,-9605.01,0.00016045,2]
[352797487,1739319049025,-3220.17,0.00016045,2]
[352797488,1739319049035,-328.128257,0.00016045,2]
[352797489,1739319049045,-328.128257,0.00016045,2]
[352797490,1739319049057,-151.0,0.00016045,2]
[352797491,1739319049068,-167.520197,0.00016045,2]
[352797492,1739319049079,-167.520197,0.00016045,2]
[352797493,1739319049089,-151.0,0.00016045,2]
[352797494,1739319049099,-151.0,0.00016045,2]
[352797495,1739319049109,-500.0,0.00016046,2]
[352797496,1739319049122,-3000.0,0.0001605,2]
[352797497,1739319049133,-3000.0,0.0001606,2]
[352797498,1739319049143,-3000.0,0.0001607,2]
[352797499,1739319049154,-3000.0,0.0001608,2]
[352797500,1739319049165,-168.21579332,0.00016082,2]
[352797501,1739319049176,-215.860309,0.00016082,2]
[352797502,1739319049191,-154.5548552,0.00016082,2]
[352797503,1739319049203,-3000.0,0.0001609,2]
[352797504,1739319049214,-160.0,0.00016093,2]
[352797505,1739319049225,-151.0,0.00016094,2]
[352797506,1739319049236,-3000.0,0.000161,2]
[352797507,1739319049247,-300.0,0.000161,6]
[352797508,1739319049260,-3000.0,0.0001611,2]
[352797509,1739319049272,-151.0,0.0001611,2]
[352797510,1739319049284,-151.0,0.0001611,2]
[352797511,1739319049295,-3226.332865,0.0001612,2]
[352797512,1739319049306,-500.0,0.0001613,2]
[352797513,1739319049317,-500.0,0.00016146,2]
[352797514,1739319049328,-160.0,0.00016181,2]
[352797515,1739319049338,-794.0692541,0.00016181,2]
[352797516,1739319049348,-808.93899193,0.00016181,2]
[352797517,1739319049359,-1041.4025443,0.00016181,2]
[352797518,1739319049369,-855.04943182,0.00016181,2]
[352797519,1739319049379,-974.87,0.00016181,2]
[352797520,1739319049389,-1907.5261291,0.00016181,2]
[352797521,1739319049399,-617.42767816,0.00016181,2]
[352797522,1739319049408,-1382.61716876,0.00016182,2]
[352797523,1739319049418,-2586.70648592,0.00016182,2]
[352797524,1739319049427,-9605.1413,0.00016182,2]
[352797525,1739319049437,-3220.19728846,0.00016182,2]
[352797526,1739319049447,-500.0,0.00016183,2]
[352797527,1739319049456,-500.0,0.00016204,2]
[352797528,1739319049465,-501.06497912,0.00016204,2]
[352797529,1739319049476,-151.0,0.00016231,2]
[352797530,1739319049485,-151.0,0.00016231,2]
[352797531,1739319049497,-157.5,0.00016231,2]
[352797532,1739319049507,-157.5,0.00016231,2]
[352797533,1739319049516,-151.0,0.00016231,2]
[352797534,1739319049526,-500.0,0.00016246,2]
[352797535,1739319049539,-538.0,0.00016283,2]
[352797536,1739319049548,-1975.0,0.00016283,2]
[352797537,1739319049558,-2296.0,0.00016283,2]
[352797538,1739319049568,-797.51005449,0.000163,2]
[352797539,1739319049578,-168.21579332,0.00016301,2]
[352797540,1739319049587,-500.0,0.0001632,2]
[352797541,1739319049597,-500.0,0.00016346,2]
[352797542,1739319049606,-151.0,0.00016368,2]
[352797543,1739319049616,-344.48,0.00016438,2]
[352797544,1739319049625,-344.48,0.00016438,2]
[352797545,1739319049635,-344.48,0.00016438,2]
[352797546,1739319049644,-344.48,0.00016438,2]
[352797547,1739319049652,-344.48,0.00016438,2]
[352797548,1739319049662,-344.48,0.00016438,2]
[352797549,1739319049671,-344.48,0.00016438,2]